Cogmind - Beta 16 @@@ ROGUE MODE // 2025.10.26 @ 22:08:22 Player: AL Result: Self-destructed Performance ------------- Evolutions (1) 500 Regions Visited (3) 600 Robots Destroyed (5) 25 Value Destroyed (79) 79 Prototype IDs (0) 0 Alien Tech Used (0) 0 Bonus (0) 0 TOTAL SCORE: 1204 Bonus ------- None Cogmind --------- Core Integrity 384/400 Matter 284/300 Energy 160/160 System Corruption 0% Temperature Cool (0) Movement Walking (120) Location -9/Materials Parts ------- > --- POWER (1) -------- Light Nuclear Core > --- PROPULSION (2) --- Aluminum Leg Aluminum Leg > --- UTILITY (4) ------ Small Storage Unit Launcher Guidance Computer > --- WEAPON (2) ------- Medium Laser Mini Grenade Launcher > --- INVENTORY (8) ---- Light Ion Engine Light Treads Light Treads Particle Gun Peak State ------------ > --- POWER ------------ Light Nuclear Core > --- PROPULSION ------- Aluminum Leg Aluminum Leg > --- UTILITY ---------- Small Storage Unit Launcher Guidance Computer > --- WEAPON ----------- Particle Gun Mini Grenade Launcher > --- INVENTORY -------- Light Ion Engine Light Treads Light Treads Medium Laser Light Assault Rifle [Rating: 14] Favorites ----------- Power Light Ion Engine Engine Light Ion Engine Power Core Light Nuclear Core Propulsion Aluminum Leg Leg Aluminum Leg Utility Small Storage Unit Storage Small Storage Unit Processor Launcher Guidance Computer Weapon Medium Laser Energy Gun Medium Laser Ballistic Gun Assault Rifle Launcher Mini Grenade Launcher Build | -11 -10 -10 -9 ------- Run | Yrd Mat Min Mat Slots Evolved 2 | . . . 2 Power . | . . . . Propulsion . | . . . . Utility 2 | . . . 2 Weapon . | . . . . Parts Attached 10 | 6 . 4 . Power 2 | 1 . 1 . Engine 1 | 1 . . . Core 1 | . . 1 . Reactor . | . . . . Propulsion 2 | 2 . . . Treads . | . . . . Leg 2 | 2 . . . Wheel . | . . . . Hover . | . . . . Flight . | . . . . Utility 2 | 1 . 1 . Device . | . . . . Storage 1 | 1 . . . Processor 1 | . . 1 . Hackware . | . . . . Protection . | . . . . Artifact . | . . . . Weapon 4 | 2 . 2 . Energy Gun 2 | 1 . 1 . Energy Cannon . | . . . . Ballistic Gun 1 | 1 . . . Ballistic Cannon . | . . . . Launcher 1 | . . 1 . Special Weapon . | . . . . Impact Weapon . | . . . . Slashing Weapon . | . . . . Piercing Weapon . | . . . . Special Melee Weapon . | . . . . Unidentified Prototypes . | . . . . Parts Lost . | . . . . Power . | . . . . Propulsion . | . . . . Utility . | . . . . Weapon . | . . . . Highest Loss Streak . | . . . . To Critical Strikes . | . . . . Average Backups 2 | . . 3 4 Power . | . . . 1 Propulsion 1 | . . 2 2 Utility . | . . . . Weapon . | . . 1 1 Tool/Special . | . . . . Unused Backups 3 | . . 1 2 Power . | . . . . Propulsion 2 | . . . 2 Utility . | . . . . Weapon 1 | . . 1 . Tool/Special . | . . . . Average Slot Usage (%) 85 | . 85 86 77 Engine 12 | . 14 13 . Core 1 | . . . 11 Leg 27 | . 28 28 22 Storage 13 | . 14 14 11 Processor 1 | . . 1 11 Energy Gun 13 | . 14 14 11 Ballistic Gun 12 | . 14 12 . Launcher 1 | . . 1 11 Peak Build Rating 14 | 6 6 14 13 Average Rating 6 | 3 6 6 13 On Entrance 6 | . 6 6 13 Avg Prop Armor Cover (%) . | . . . . Naked Turns . | . . . . Heaviest Build 13 | 12 12 13 13 Greatest Support 20 | 20 20 20 20 Greatest Overweight (x) . | . . . . Average Overweight (x) . | . . . . Largest Inventory Capacity 8 | 8 8 8 8 Average Capacity 7 | 6 8 8 8 Most Carried 6 | 3 3 6 4 Average Carried 2 | . . 3 4 Final Capacity 8 | 8 8 8 8 Final Carried 4 | . 3 4 4 Class Distribution -------------------- 100% | Mutant Dominant Class ---------------- Mutant | -10/Materials Mutant | -10/Mines Mutant | -9/Materials Resources | -11 -10 -10 -9 ----------- Run | Yrd Mat Min Mat Matter Collected 332 | 192 80 60 . Remotely . | . . . . Salvage Created 133 | . 49 84 . Parts 12 | . 2 10 . Haulers Intercepted 1 | . 1 . . Recyclers Shooed . | . . . . Parts Field Recycled . | . . . . Retrieved Matter . | . . . . Parts Self-Destructed . | . . . . Prevented . | . . . . Parts Restored . | . . . . Kills | -11 -10 -10 -9 ------- Run | Yrd Mat Min Mat Combat Hostiles Destroyed 4 | . . 4 . Guns 4 | . . 4 . Classes Destroyed 3 | . 1 2 . Hauler 1 | . 1 . . Swarmer 3 | . . 3 . Grunt 1 | . . 1 . Best Kill Streak 3 | . 1 3 . Combat Bots Only 3 | . . 3 . Max Kills in Single Turn 2 | . 1 2 . Gunslinging 1 | . . 1 . Exploded . | . . . . Melee . | . . . . Uniques/NPCs Destroyed . | . . . . Combat | -11 -10 -10 -9 -------- Run | Yrd Mat Min Mat Hostile Shots Fired 21 | . . 14 7 Missed 10 | . . 5 5 Hits 11 | . . 9 2 Projectile 11 | . . 9 2 Damage Taken 115 | . . 99 16 Core 24 | . . 8 16 Absorbed by Shields . | . . . . Core Remaining (%) 98 | 100 . 96 . Volleys Fired 14 | . 4 10 . Largest 2 | . 2 2 . Hottest 70 | . 70 70 . Shots Fired 28 | . 8 20 . Gun 28 | . 8 20 . Cannon . | . . . . Launcher . | . . . . Special . | . . . . Kinetic 14 | . 4 10 . Thermal 14 | . 4 10 . Explosive . | . . . . Electromagnetic . | . . . . Robot Hit Streak 3 | . 2 3 . Robot Miss Streak 2 | . 1 2 . Penetration Max . | . . . . Secondary Targets 1 | . . 1 . Max Gunslinging Chain 1 | . . 1 . Shots Hit Robots 15 | . 5 10 . Core Hits 8 | . 2 6 . Critical Kills . | . . . . Critical Parts Destroyed . | . . . . Critical Strikes . | . . . . Melee Attacks . | . . . . Impact . | . . . . Slashing . | . . . . Piercing . | . . . . Sneak Attacks . | . . . . Combat Hostiles . | . . . . Follow-up Attacks . | . . . . Damage Inflicted 183 | . 59 124 . Guns 181 | . 59 122 . Cannons . | . . . . Explosions . | . . . . Melee . | . . . . Ramming 2 | . . 2 . Kinetic 83 | . 22 61 . Thermal 98 | . 37 61 . Explosive . | . . . . Electromagnetic . | . . . . Impact . | . . . . Slashing . | . . . . Piercing . | . . . . Highest Corruption 2 | . 2 2 . Average Corruption 2 | . 2 2 . Corruption Purged . | . . . . Corruption Blocked . | . . . . Overload Shots . | . . . . Overflow Damage . | . . . . Projectiles . | . . . . Explosions . | . . . . Melee . | . . . . Knockbacks . | . . . . Impact . | . . . . Kinetic . | . . . . Secondary . | . . . . Self-Inflicted Damage . | . . . . Shots . | . . . . Rammed . | . . . . Targets Rammed 1 | . . 1 . Kicked 1 | . . 1 . Crushed . | . . . . Highest Temperature 81 | . 36 81 . Average Temperature 25 | . 19 28 . Received Heat Transfer 36 | . . 36 . Siege Activations . | . . . . Martial Activations . | . . . . Shielding Activations . | . . . . Robots Disrupted . | . . . . Combat Hostiles . | . . . . Robots Corrupted . | . . . . Combat Hostiles . | . . . . Parts Fried . | . . . . Impact Corruptions . | . . . . Robots Melted . | . . . . Combat Hostiles . | . . . . Parts Melted . | . . . . Heat Transferred 296 | . 111 185 . Parts Sabotaged . | . . . . Parts Stolen . | . . . . Parts Stripped . | . . . . Power Chain Reactions . | . . . . Alert | -11 -10 -10 -9 ------- Run | Yrd Mat Min Mat Maximum Alert Level . | . . . . Low Security (%) 100 | 100 100 100 100 Level 1 . | . . . . Level 2 . | . . . . Level 3 . | . . . . Level 4 . | . . . . Level 5 . | . . . . High Security . | . . . . Max Security . | . . . . Peak Influence 70 | . . 70 11 Initial 11 | . . . 11 Average 14 | . . 32 10 Influence Increases 107 | . 7 100 . Destroy 0b10 Robot/C 80 | . . 80 . Destroy 0b10 Robot/NC 5 | . 5 . . Destroy Leader 22 | . 2 20 . Influence Decreases 106 | . 7 70 29 Entered New Map 19 | . . . 19 Time Decay 87 | . 7 70 10 Squads Dispatched 1 | . . . 1 Investigation 1 | . . . 1 Extermination . | . . . . Reinforcement . | . . . . Assault . | . . . . Garrison . | . . . . Intercept . | . . . . Searches Triggered . | . . . . Construction Impeded . | . . . . Haulers Reinforced . | . . . . Active Scanning Responses . | . . . . Cargo Convoy Interrupts . | . . . . Stealth | -11 -10 -10 -9 --------- Run | Yrd Mat Min Mat Distress Signals . | . . . . Communications Jammed . | . . . . Distress Signals . | . . . . Times Spotted 13 | . 1 8 4 Peak Tracking Total 4 | . 1 4 4 Tactical Retreats . | . . . . Traps | -11 -10 -10 -9 ------- Run | Yrd Mat Min Mat Traps Triggered 1 | . 1 . . Indirectly . | . . . . Trap Hack Attempts . | . . . . Triggered . | . . . . Disarmed . | . . . . Reprogrammed . | . . . . Reused . | . . . . Traps Extracted . | . . . . Installed . | . . . . Triggered . | . . . . Machines | -11 -10 -10 -9 ---------- Run | Yrd Mat Min Mat Machines Disabled . | . . . . Max in Single Turn . | . . . . Machines Repaired . | . . . . Machines Dismantled . | . . . . Machines Sabotaged . | . . . . Overloaded Fab Kills . | . . . . Hacking | -11 -10 -10 -9 --------- Run | Yrd Mat Min Mat Machines Accessed 2 | . 1 . 1 Terminals 2 | . 1 . 1 Fabricators . | . . . . Repair Stations . | . . . . Recycling Units . | . . . . Scanalyzers . | . . . . Garrison Access . | . . . . Total Hacks 5 | . 2 . 3 Successful . | . . . . Failed 5 | . 2 . 3 Catastrophic 1 | . 1 . . Database Lockouts . | . . . . Manual 4 | . . . 4 Terminals 5 | . 2 . 3 Fabricators . | . . . . Repair Stations . | . . . . Recycling Units . | . . . . Scanalyzers . | . . . . Garrison Access . | . . . . Terminal Hacks . | . . . . Fabricator Hacks . | . . . . Repair Station Hacks . | . . . . Recycling Unit Hacks . | . . . . Scanalyzer . | . . . . Garrison Access Hacks . | . . . . Unauthorized Hacks . | . . . . Terminals . | . . . . Fabricators . | . . . . Repair Stations . | . . . . Recycling Units . | . . . . Scanalyzers . | . . . . Garrison Access . | . . . . Data Cores Recovered . | . . . . Used . | . . . . Hacking Detections 2 | . 1 . 1 Full Trace Events 2 | . 1 . 1 Feedback Events . | . . . . Feedback Blocked . | . . . . Robot Schematics Acquired . | . . . . Robots Built . | . . . . Authchips . | . . . . Time . | . . . . Total Robot Build Rating . | . . . . Part Schematics Acquired . | . . . . Parts Built . | . . . . Authchips . | . . . . Time . | . . . . Total Part Build Rating . | . . . . Part Studies Acquired . | . . . . Parts Repaired . | . . . . Time . | . . . . Parts Recycled . | . . . . Recycled Matter . | . . . . Retrieved Matter . | . . . . Retrieved Components . | . . . . Parts Scanalyzed . | . . . . Part Schematics Acquired . | . . . . Parts Damaged . | . . . . Bothacking | -11 -10 -10 -9 ------------ Run | Yrd Mat Min Mat Used RIF Installer . | . . . . Robots Hacked . | . . . . Non-combat . | . . . . Combat . | . . . . Robot Hacks Applied . | . . . . Relay Couplers Released . | . . . . Fabnet Peak Effective % . | . . . . Robots Rewired . | . . . . Allies Hacked . | . . . . Hacks Repelled . | . . . . Allies | -11 -10 -10 -9 -------- Run | Yrd Mat Min Mat Total Allies . | . . . . Largest Group . | . . . . Highest-Rated Group . | . . . . Highest-Rated Ally . | . . . . Total Orders . | . . . . Ally Attacks . | . . . . Total Damage . | . . . . Kills . | . . . . Allies Corrupted . | . . . . Allies Melted . | . . . . Intel | -11 -10 -10 -9 ------- Run | Yrd Mat Min Mat Active Infowar (turns) . | . . . . Robot Analysis Total . | . . . . Derelict Logs Recovered . | . . . . Drone Launches . | . . . . Drone Recoveries . | . . . . Exploration | -11 -10 -10 -9 ------------- Run | Yrd Mat Min Mat Turns Passed 403 | 45 159 179 20 Spaces Moved 279 | 32 121 110 16 Core 6 | 6 . . . Treads . | . . . . Legs 273 | 26 121 110 16 Wheels . | . . . . Hover . | . . . . Flight . | . . . . Fastest Speed 50 | 50 120 120 120 Average Speed 118 | 106 120 120 120 Slowest Speed 120 | 120 120 120 120 Overloaded Moves . | . . . . Propulsion Burnouts . | . . . . Robots Hopped . | . . . . Potential Cave-ins . | . . . . Cave-ins Triggered . | . . . . Exploration Rate (%) 17 | 4 29 31 5 Regions Visited 3 Branch Regions 1 Pre-discovered Areas . | . . . . Known Exits Taken . | . . . . Unknown Exits Taken 3 | 1 1 1 . Scrap Searched . | . . . . Spaces Dug . | . . . . Terrain Destroyed . | . . . . Melee . | . . . . Projectile . | . . . . AOE . | . . . . Terrain Rammed . | . . . . Walls Destroyed . | . . . . Machines Disabled . | . . . . Actions | -11 -10 -10 -9 --------- Run | Yrd Mat Min Mat Total 322 | 43 127 136 16 Wait 5 | . . 5 . Move 276 | 31 120 109 16 Hop . | . . . . Pick Up 13 | 6 3 4 . Fast Attach . | . . . . Attach 8 | 6 . 2 . Detach . | . . . . Swap 3 | . . 3 . Drop 2 | . . 2 . Fire 14 | . 4 10 . Melee . | . . . . Ram . | . . . . Kick 1 | . . 1 . Crush . | . . . . Escape Stasis . | . . . . Rewire . | . . . . Trap . | . . . . Miscellaneous . | . . . . Route ------- -11/Scrapyard -10/Materials (discovered 2 exits: [*Min x2]) -10/Mines -9/Materials History --------- Turn | Location | Event 27 | -11/Scrapyard | Discovered new exit (range 16) 46 | -11/Scrapyard | Entered Materials 161 | -10/Materials | Discovered new exit (range 16) 196 | -10/Materials | Discovered new exit (range 9) 205 | -10/Materials | Entered Mines 278 | -10/Mines | Assembled infested the area 283 | -10/Mines | Assisted by a Guerilla fighting off Assembled 313 | -10/Mines | Build established: Mutant 339 | -10/Mines | Discovered new exit (range 10) 384 | -10/Mines | Entered Materials 384 | -9/Materials | Evolved 2 slots: Utility x2 404 | -9/Materials | Self-destructed Last Messages --------------- 00364_ K-01 Serf collects debris. 00367_ Dropped Assault Rifle. 00368_ K-01 Serf collects debris. 00369_ Acquired 4 matter. 00369_ K-01 Serf collects debris. 00372_ Kicked K-01 Serf. 00375_ K-01 Serf collects debris. 00375_ Acquired Particle Gun. 00376_ Acquired 22 matter. 00378_ Acquired 4 matter. 00379_ K-01 Serf collects debris. 00380_ Dropped Lgt. Assault Rifle. PARAMETERS=UTILITY+2 LOCATION=UNKNOWN GOAL=ESCAPE 00392_ Connecting with Terminal... 00392_ Current location identified: Materials 00392_ ALERT: Suspicious activity at Terminal M003. Dispatching Investigation squad. 00401_ U-05 Engineer works on Processing Tank. Map ----- +----------------------------------------------------+ | | | | | | | | | | | | | | | | | | | | | | | | | | | | | ?????????????????????????????????????????????????? | | ?????????????????????????????????????????????????? | | ?????????????????????????????????????????????????? | | ?????????????????????????????????????????????????? | | ???????????????????????########??????????????????? | | ???????????????????????# #??????????????????? | | ???????????????????????# ##???#####?????????? | | ???????????????????????# """ #???# #?????????? | | ???????????????????????+ """ Y#????# #?????????? | | ???????????????????????# """ ?????# #?????????? | | ???????????????????????# ???????# #?????????? | | ???????????????????# ##@########## #?????????? | | ???????????????????# #?????????? | | ???????????????????# | #?????????? | | ???????????????????# "T" #?????????? | | ???????????????????# u #?????????? | | ???????????????? < #?????????? | | ??????????????? u #?????????? | | ?????????????? s #?????????? | | ????????????? "T" ############# #?????????? | | ????????????? #????????????# #?????????? | | ?????????????? ?? s ?????????????# #?????????? | | ???????????????? s ?????????????? #?????????? | | ???????????????? ??????????????? #?????????? | | ????????????????? ??????????????? #?????????? | | ???????????????????????????????????? ?????????? | | ???????????????????????????????????? ?????????? | | ?????????????????????????????????????????????????? | | ?????????????????????????????????????????????????? | | ?????????????????????????????????????????????????? | | ?????????????????????????????????????????????????? | | ?????????????????????????????????????????????????? | | ?????????????????????????????????????????????????? | | ?????????????????????????????????????????????????? | | ?????????????????????????????????????????????????? | | ?????????????????????????????????????????????????? | +----------------------------------------------------+ Best States ------------- Heat Dissipation 28 Energy Generation 14 Energy Capacity 160 Matter Stores 300 Matter Capacity 300 Sight Range 16 Terrain Scan Density 10 Evasion (%) 55 Launcher Accuracy 20 Item Schematics ----------------- None Robot Schematics ------------------ None Fabricated ------------ Nothing Repaired ---------- Nothing Studied --------- None Alien Tech Used ----------------- None Achievements -------------- None Challenges ------------ None Game ------ Seed QuantumGhostParser Manual? 0 Play Time 00:12:51 Cumulative 8.1 hours Start 2025.10.26 @ 21:15:32 End 2025.10.26 @ 22:08:22 Sessions 1 Manual Loads 0 Difficulty Rogue Special Mode None Game No. 14 Rogue 14 Adventurer 0 Explorer 0 Win Type - Total 0 Types 0/0/0/0/0/0/0/0/0/0 Lore% 7 Gallery% 12 Achievement% 11 Wizard Run 0 Options --------- Layout 0 ASCII 0 Keyboard 0 Movement Mouse Keybinds 0 Fullscreen 1 Font 24/Smallcaps Map View 38x25 Zoom Use 100% Tactical HUD 1 Map Filters NONE Filters NONE Steam 1 RUN: 5d4b24f9-06d3-465a-a407-fdb3715771e8